bitfinex/quotes_BTCUSD_20240703
["timestamp","ask_amount","ask_price","bid_price","bid_amount"]
[1720028908393,3.93642248,60304.0,60303.0,0.00835]
[1720028908622,2.045685,60301.0,60300.0,4e-05]
[1720028908835,0.829222,60290.0,60289.0,0.50820966]
[1720028909034,1.93755,60290.0,60289.0,0.21228446]
[1720028909241,1.99236679,60290.0,60289.0,0.21228446]
[1720028909601,1.99236679,60290.0,60289.0,0.1452988]
[1720028909897,1.78298,60290.0,60289.0,0.19728446]
[1720028910097,1.78298,60290.0,60289.0,0.1452988]
[1720028910302,1.78298,60290.0,60289.0,0.19728446]
[1720028910478,1.78298,60290.0,60289.0,0.1452988]
[1720028910678,1.78298,60290.0,60289.0,0.19728446]
[1720028911834,1.451251,60290.0,60289.0,0.19728446]
[1720028912035,0.929222,60290.0,60289.0,0.31048446]
[1720028912381,0.929122,60290.0,60289.0,0.31048446]
[1720028912594,0.265664,60290.0,60289.0,0.36348446]
[1720028912805,0.597393,60290.0,60289.0,0.36348446]
[1720028913238,0.929122,60290.0,60289.0,0.36348446]
[1720028913436,0.597393,60290.0,60289.0,0.36348446]
[1720028913854,0.929122,60290.0,60289.0,0.36348446]
[1720028914261,0.929122,60290.0,60289.0,0.33348446]
[1720028914415,0.929122,60290.0,60289.0,0.33748446]
[1720028914825,0.929122,60290.0,60289.0,0.19728446]
[1720028915085,1.261851,60290.0,60289.0,0.20628446]
[1720028915303,1.261851,60290.0,60289.0,0.22928446]
[1720028915507,1.261751,60290.0,60289.0,0.22928446]
[1720028915806,0.930022,60290.0,60289.0,0.22928446]
[1720028916007,0.929922,60290.0,60289.0,0.22928446]
[1720028916323,1.261651,60290.0,60289.0,0.22928446]
[1720028917149,1.262651,60290.0,60289.0,0.23728446]
[1720028917744,0.930922,60290.0,60289.0,0.26728446]
[1720028917965,0.930922,60290.0,60289.0,0.41568446]
[1720028919569,0.599193,60290.0,60289.0,0.52378446]
[1720028919810,0.599293,60290.0,60289.0,0.52378446]
[1720028921450,0.1021,60290.0,60289.0,0.52378446]
[1720028921807,0.0021,60290.0,60289.0,0.82368446]
[1720028922746,0.0021,60290.0,60289.0,1.12368446]
[1720028922946,0.002,60290.0,60289.0,1.12368446]
[1720028923294,0.002,60290.0,60289.0,1.34655878]
[1720028923295,0.0001,60290.0,60289.0,1.34655878]
[1720028923426,0.0011,60290.0,60289.0,2.07330033]
[1720028923628,0.0011,60290.0,60289.0,2.15712146]
[1720028923831,0.0012,60290.0,60289.0,2.15712146]
[1720028924231,0.0011,60290.0,60289.0,2.15012146]
[1720028924433,0.0011,60290.0,60289.0,2.16412146]
[1720028924639,0.64673294,60314.0,60313.0,0.05198566]
[1720028924838,1.30992694,60314.0,60313.0,0.23528446]
[1720028925022,0.828992,60314.0,60313.0,0.23528446]
[1720028925420,0.828992,60314.0,60313.0,0.26528446]
[1720028926041,0.828992,60314.0,60313.0,0.23528446]
[1720028926243,0.828992,60314.0,60313.0,0.26528446]
[1720028926458,0.928992,60314.0,60313.0,0.26528446]
[1720028926866,0.938992,60314.0,60313.0,0.26628446]
[1720028927448,0.938992,60314.0,60313.0,0.26618446]
[1720028927690,0.938992,60314.0,60313.0,0.26818446]
[1720028928551,0.938992,60314.0,60313.0,0.26718446]
[1720028928787,0.928992,60314.0,60313.0,0.26718446]
[1720028929004,0.928992,60314.0,60313.0,0.26918446]
[1720028929273,0.265798,60314.0,60313.0,0.26918446]
[1720028929461,0.597395,60314.0,60313.0,0.53238446]
[1720028930115,0.597395,60314.0,60313.0,0.52838446]
[1720028930554,0.597395,60314.0,60313.0,0.54038446]
[1720028930944,0.597395,60314.0,60313.0,0.24718446]
[1720028930945,0.928992,60314.0,60313.0,0.24718446]
[1720028931282,1.260589,60314.0,60313.0,0.24718446]
[1720028931482,1.260589,60314.0,60313.0,0.24118446]
[1720028932108,1.260589,60314.0,60313.0,0.23518446]
[1720028932312,1.260589,60314.0,60313.0,0.26518446]
[1720028932776,1.260589,60314.0,60313.0,0.27918446]
[1720028932977,1.261589,60314.0,60313.0,0.24818446]
[1720028933417,1.261589,60314.0,60313.0,0.25518446]
[1720028934016,1.261589,60314.0,60313.0,0.24808446]
[1720028935287,1.261589,60314.0,60313.0,0.23508446]
[1720028935489,1.592186,60314.0,60313.0,0.21208446]
[1720028935716,1.592186,60314.0,60313.0,0.22208446]
[1720028935717,1.593186,60314.0,60313.0,0.22208446]
[1720028935954,1.593186,60314.0,60313.0,0.23208446]
[1720028936494,1.593186,60314.0,60313.0,0.23198446]
[1720028936625,1.593186,60314.0,60313.0,0.22198446]
[1720028936829,1.592186,60314.0,60313.0,0.21198446]
[1720028937182,1.593186,60314.0,60313.0,0.22598446]
[1720028939424,1.592186,60314.0,60313.0,0.21598446]
[1720028939838,1.592186,60314.0,60313.0,0.21998446]
[1720028940886,1.260589,60314.0,60313.0,0.21998446]
[1720028941138,1.260589,60314.0,60313.0,0.21598446]
[1720028941439,1.260589,60314.0,60313.0,0.21798446]
[1720028941680,1.260589,60314.0,60313.0,0.26698446]
[1720028942662,1.260589,60314.0,60313.0,0.26898446]
[1720028942867,1.260589,60314.0,60313.0,0.26908446]
[1720028943132,1.260589,60314.0,60313.0,0.23908446]
[1720028943381,1.260589,60314.0,60313.0,0.23918446]
[1720028943867,1.260589,60314.0,60313.0,0.26918446]
[1720028943868,0.597495,60314.0,60313.0,0.26918446]
[1720028944057,0.0001,60314.0,60313.0,1.12738446]
[1720028944487,0.0001,60314.0,60313.0,0.90162423]
[1720028944660,0.0001,60314.0,60313.0,1.20162423]
[1720028944837,0.0001,60314.0,60313.0,0.89962423]
[1720028945034,0.0001,60314.0,60313.0,0.89179746]
[1720028945364,0.0001,60314.0,60313.0,1.18979746]
[1720028945568,0.0001,60314.0,60313.0,1.78618782]
[1720028945771,0.0001,60314.0,60313.0,1.80018782]
[1720028945933,0.0001,60314.0,60313.0,1.78618782]
[1720028946139,0.0001,60314.0,60313.0,1.78701782]
[1720028946356,0.0001,60314.0,60313.0,1.80114738]
[1720028946519,0.00101301,60314.0,60313.0,1.80114738]
[1720028946714,0.00101301,60314.0,60313.0,1.80113361]
[1720028947166,0.00101301,60314.0,60313.0,1.70203146]
[1720028948128,0.00101301,60314.0,60313.0,1.97634871]
[1720028948332,0.00101301,60314.0,60313.0,1.99034871]
[1720028949001,0.00101301,60314.0,60313.0,2.23363446]
[1720028949224,0.00101301,60314.0,60313.0,2.35745415]
[1720028949429,0.00101301,60314.0,60313.0,2.37143019]
[1720028950383,0.1,60324.0,60323.0,0.38158566]
[1720028950588,0.265768,60325.0,60324.0,0.08168566]
[1720028950796,0.265768,60325.0,60324.0,0.24198446]
[1720028951002,0.265768,60325.0,60324.0,0.26498446]
[1720028951585,0.597305,60325.0,60324.0,0.26498446]
[1720028952532,0.597305,60325.0,60324.0,0.27498446]
[1720028953023,0.597305,60325.0,60324.0,0.27488446]
[1720028955625,0.265768,60325.0,60324.0,0.57488446]
[1720028955782,0.265768,60325.0,60324.0,0.27488446]
[1720028956188,0.597305,60325.0,60324.0,0.27488446]
[1720028957116,0.597305,60325.0,60324.0,0.28488446]
[1720028959517,0.1,60325.0,60324.0,0.88478446]
[1720028959846,0.331523,60328.0,60327.0,0.08158566]
[1720028960040,0.828766,60331.0,60330.0,0.08158566]
[1720028960240,0.828766,60331.0,60330.0,0.26488446]
[1720028960241,0.928766,60331.0,60330.0,0.26488446]
[1720028960606,0.928766,60331.0,60330.0,0.41328446]
[1720028961265,0.928766,60331.0,60330.0,0.38328446]
[1720028961440,1.260273,60331.0,60330.0,0.23488446]
[1720028961850,1.260273,60331.0,60330.0,0.26488446]
[1720028962051,1.260273,60331.0,60330.0,0.23488446]
[1720028962915,1.260273,60331.0,60330.0,0.26478446]
[1720028963111,1.260273,60331.0,60330.0,0.23468446]
[1720028963407,1.260273,60331.0,60330.0,0.23458446]
[1720028963710,1.260273,60331.0,60330.0,0.23658446]
[1720028964190,1.260273,60331.0,60330.0,0.23858446]
[1720028968302,1.2707554,60331.0,60330.0,0.23858446]
[1720028969077,1.260273,60331.0,60330.0,0.23858446]
[1720028969292,1.27082639,60331.0,60330.0,0.23858446]
[1720028969479,1.27092639,60331.0,60330.0,0.23858446]
[1720028971376,0.928866,60331.0,60330.0,0.52438446]
[1720028972490,1.260373,60331.0,60330.0,0.52438446]
[1720028972687,1.27086404,60331.0,60330.0,0.52438446]
[1720028972896,1.27093691,60331.0,60330.0,0.52448446]
[1720028973099,1.260373,60331.0,60330.0,0.52448446]
[1720028973303,1.27093708,60331.0,60330.0,0.49448446]
[1720028973878,1.27093708,60331.0,60330.0,0.52448446]
[1720028974111,1.27093708,60331.0,60330.0,0.49458446]
[1720028975058,1.27103708,60331.0,60330.0,0.49458446]
[1720028975653,1.27073143,60331.0,60330.0,0.49458446]
[1720028976236,1.27073143,60331.0,60330.0,0.23878446]
[1720028976834,0.93922443,60331.0,60330.0,0.23878446]
[1720028977266,1.27073143,60331.0,60330.0,0.23878446]
[1720028978908,1.27073132,60331.0,60330.0,0.23878446]
[1720028982232,1.27106543,60331.0,60330.0,0.23961446]
[1720028982433,1.27106543,60331.0,60330.0,0.26961446]
[1720028982951,1.27106543,60331.0,60330.0,0.23961446]
[1720028985164,1.27106543,60331.0,60330.0,0.26961446]
[1720028985610,1.27108402,60331.0,60330.0,0.26961446]
[1720028985963,1.260473,60331.0,60330.0,0.26961446]
[1720028986259,1.27101537,60331.0,60330.0,0.26961446]
[1720028986995,1.27101537,60331.0,60330.0,0.23961446]
[1720028988870,1.27101537,60331.0,60330.0,0.1880288]
[1720028988871,1.713816,60331.0,60330.0,0.1880288]
[1720028989072,1.713816,60331.0,60330.0,0.23961446]
[1720028989429,1.76359684,60331.0,60330.0,0.23961446]
[1720028989634,1.713816,60331.0,60330.0,0.23961446]
[1720028989817,1.76698371,60331.0,60330.0,0.1880288]
[1720028990890,1.76698371,60331.0,60330.0,0.23961446]
[1720028991967,1.76698371,60331.0,60330.0,0.1880288]
[1720028991968,1.70258,60331.0,60330.0,0.1880288]
[1720028992175,2.10158596,60331.0,60330.0,0.1650288]
[1720028994032,2.10158596,60331.0,60330.0,0.1630288]
[1720028995344,2.10957829,60331.0,60330.0,0.1630288]
[1720028996110,2.10957829,60331.0,60330.0,0.1610288]
[1720028996557,2.11357829,60331.0,60330.0,0.1610288]
[1720028997285,2.10957829,60331.0,60330.0,0.1610288]
[1720028997484,2.11257829,60331.0,60330.0,0.1610288]
[1720028998377,1.78107129,60331.0,60330.0,0.21261446]
[1720028998616,1.70558,60331.0,60330.0,0.21261446]
[1720028998810,1.72441749,60331.0,60330.0,0.21261446]
[1720028999221,1.72446642,60331.0,60330.0,0.21261446]
[1720028999433,1.61386642,60331.0,60330.0,0.21261446]
[1720029000168,1.28235942,60331.0,60330.0,0.23561446]
[1720029000359,1.28235942,60331.0,60330.0,0.26561446]
[1720029000597,0.85085242,60331.0,60330.0,0.49251446]
[1720029001349,0.85180303,60331.0,60330.0,0.52251446]
[1720029001886,0.85180303,60331.0,60330.0,0.49251446]
[1720029002329,0.85180303,60331.0,60330.0,0.4409288]
[1720029002330,0.95180303,60331.0,60330.0,0.4409288]
[1720029002537,1.28331003,60331.0,60330.0,0.23561446]
[1720029003721,1.28031003,60331.0,60330.0,0.24361446]
[1720029003930,1.28031003,60331.0,60330.0,0.25061446]
[1720029004134,1.28022282,60331.0,60330.0,0.25061446]
[1720029004544,1.28022282,60331.0,60330.0,0.24361446]
[1720029004921,1.28022282,60331.0,60330.0,0.1900288]
[1720029005174,1.80202982,60331.0,60330.0,0.24161446]
[1720029005371,1.80202982,60331.0,60330.0,0.24761446]
[1720029005788,1.80202982,60331.0,60330.0,0.1960288]
[1720029006179,1.80202982,60331.0,60330.0,0.21942046]
[1720029006373,1.80202982,60331.0,60330.0,0.1960288]
[1720029006584,1.80202982,60331.0,60330.0,0.1900288]
[1720029007030,1.80202982,60331.0,60330.0,0.23661446]
[1720029007444,1.46943919,60331.0,60330.0,0.23561446]
[1720029007570,1.48810193,60331.0,60330.0,0.23561446]
[1720029007772,1.48810193,60331.0,60330.0,0.23661446]
[1720029007974,1.48810193,60331.0,60330.0,0.23761446]
[1720029008221,1.29780193,60331.0,60330.0,0.26661446]
[1720029008361,1.29780193,60331.0,60330.0,0.34701446]
[1720029008558,1.29780193,60331.0,60330.0,0.34801446]
[1720029008811,1.29780193,60331.0,60330.0,0.37801446]
[1720029009604,1.29780193,60331.0,60330.0,0.34801446]
[1720029010961,1.27913919,60331.0,60330.0,0.37801446]
[1720029011157,1.29861609,60331.0,60330.0,0.37801446]
[1720029011387,1.29861609,60331.0,60330.0,0.34801446]
[1720029012243,1.29861609,60331.0,60330.0,0.45571446]
[1720029013825,1.29064875,60331.0,60330.0,0.45571446]
[1720029014229,1.29060225,60331.0,60330.0,0.45571446]
[1720029014454,1.29060225,60331.0,60330.0,0.48571446]
[1720029014772,0.95909525,60331.0,60330.0,0.48571446]
[1720029014901,0.29608125,60331.0,60330.0,0.48571446]
[1720029016106,0.28461819,60331.0,60330.0,0.48571446]
[1720029016277,0.29663646,60331.0,60330.0,0.48571446]
[1720029016488,0.2855312,60331.0,60330.0,0.48571446]
[1720029016716,0.1197792,60331.0,60330.0,0.48571446]
[1720029016918,0.0197792,60331.0,60330.0,0.78561446]
[1720029017347,0.0197792,60331.0,60330.0,1.78287946]
[1720029017590,0.0197792,60331.0,60330.0,1.83262138]
[1720029017761,0.0197792,60331.0,60330.0,2.18900234]
[1720029017908,0.0197792,60331.0,60330.0,1.78187946]
[1720029018115,0.0197792,60331.0,60330.0,1.23896053]
[1720029018319,0.0197792,60331.0,60330.0,1.07320553]
[1720029018516,0.0197792,60331.0,60330.0,1.29761446]
[1720029018854,0.0197792,60331.0,60330.0,1.01161446]
[1720029019179,0.0197792,60331.0,60330.0,1.16336946]
[1720029019632,0.0197792,60331.0,60330.0,1.46336946]
[1720029019964,0.0197792,60331.0,60330.0,1.84459808]
[1720029020157,0.0197792,60331.0,60330.0,1.83059808]
[1720029020293,0.0197792,60331.0,60330.0,1.46336946]
[1720029021065,0.0197792,60331.0,60330.0,1.47736946]
[1720029021269,0.0197792,60331.0,60330.0,1.46336946]
[1720029021654,0.0197792,60331.0,60330.0,1.47736946]
[1720029023208,0.00111301,60331.0,60330.0,1.47736946]
[1720029023418,0.00111301,60331.0,60330.0,1.46336946]
[1720029023866,0.00111301,60331.0,60330.0,1.47736946]
[1720029024533,0.00111301,60331.0,60330.0,1.79487946]
[1720029024706,0.00111301,60331.0,60330.0,1.78087946]
[1720029025060,0.00111301,60331.0,60330.0,1.80887946]
[1720029025673,0.00111301,60331.0,60330.0,1.79487946]
[1720029027007,0.00111301,60331.0,60330.0,1.78087946]
[1720029028208,0.00111301,60331.0,60330.0,1.79487946]
[1720029029154,0.00111301,60331.0,60330.0,1.80887946]
[1720029031130,0.00101301,60331.0,60330.0,1.80887946]
[1720029033804,0.00101301,60331.0,60330.0,2.47189946]
[1720029034025,0.00091301,60339.0,60338.0,1.46768466]
[1720029034230,0.00091301,60339.0,60338.0,2.6155298]
[1720029034431,0.00091301,60339.0,60338.0,3.41140884]
[1720029034560,0.00091301,60339.0,60338.0,3.46105048]
[1720029034763,0.00807695,60350.0,60345.0,1.74325266]
[1720029034987,0.00807695,60350.0,60345.0,2.19385146]
[1720029035555,0.00807695,60350.0,60345.0,2.52527846]
[1720029036794,0.00807695,60350.0,60345.0,2.53927846]
[1720029037744,0.00807695,60350.0,60345.0,2.96317846]
[1720029037948,0.00807695,60350.0,60345.0,2.97717846]
[1720029040385,0.00807695,60350.0,60345.0,2.99731485]
[1720029041495,0.00807695,60350.0,60345.0,3.04683298]
[1720029042751,0.00807695,60350.0,60345.0,2.66588785]
[1720029042895,0.00807695,60350.0,60345.0,2.99731485]
[1720029043300,0.00807695,60350.0,60345.0,3.04683298]
[1720029043720,0.00101301,60346.0,60345.0,3.04683298]
[1720029043933,0.00101301,60346.0,60345.0,2.71540598]
[1720029045287,0.00101301,60346.0,60345.0,2.66588785]
[1720029045660,0.00101301,60346.0,60345.0,1.00412085]
[1720029045916,0.00101301,60346.0,60345.0,1.03735085]
[1720029046072,0.00101301,60346.0,60345.0,0.68408446]
[1720029046374,0.16672401,60346.0,60345.0,0.26988446]
[1720029046567,0.82956801,60346.0,60345.0,0.56978446]
[1720029046647,0.82956801,60346.0,60345.0,0.26988446]
[1720029046851,0.82956801,60346.0,60345.0,0.23988446]
[1720029046852,1.16099001,60346.0,60345.0,0.23988446]
[1720029047060,1.16559001,60346.0,60345.0,0.23988446]
[1720029047489,1.16559001,60346.0,60345.0,0.22588446]
[1720029048224,1.16559001,60346.0,60345.0,0.21188446]
[1720029048645,1.16559001,60346.0,60345.0,0.1742988]
[1720029048646,1.49701201,60346.0,60345.0,0.1742988]
[1720029048848,1.86841201,60346.0,60345.0,0.1742988]
[1720029049270,1.87867854,60346.0,60345.0,0.1742988]
[1720029049464,1.86841201,60346.0,60345.0,0.1882988]
[1720029049782,1.87867856,60346.0,60345.0,0.1882988]
[1720029049921,1.86841201,60346.0,60345.0,0.1882988]
[1720029050135,1.87867846,60346.0,60345.0,0.23988446]
[1720029050456,1.68847846,60346.0,60345.0,0.23998446]
[1720029050653,1.68847846,60346.0,60345.0,0.26298446]
[1720029051404,1.68847846,60346.0,60345.0,0.24898446]
[1720029051773,1.68847846,60346.0,60345.0,0.25198446]
[1720029051979,1.26099001,60346.0,60345.0,0.25198446]
[1720029052190,0.92956801,60346.0,60345.0,0.24898446]
[1720029052353,0.92956801,60346.0,60345.0,0.23498446]
[1720029052526,0.92956801,60346.0,60345.0,0.24598446]
[1720029052527,1.26099001,60346.0,60345.0,0.24598446]
[1720029052751,1.34879001,60346.0,60345.0,0.24598446]
[1720029052975,1.34879001,60346.0,60345.0,0.24898446]
[1720029053689,1.34879001,60346.0,60345.0,0.24598446]
[1720029053922,1.34879001,60346.0,60345.0,0.24608446]
[1720029054137,1.34879001,60346.0,60345.0,0.25008446]
[1720029060188,1.34879001,60346.0,60345.0,0.1984988]
[1720029060189,1.68021201,60346.0,60345.0,0.1984988]
[1720029060825,1.68021201,60346.0,60345.0,0.25008446]
[1720029063604,1.68021201,60346.0,60345.0,0.1984988]
[1720029064292,1.68021201,60346.0,60345.0,0.25008446]
[1720029064476,1.68021201,60346.0,60345.0,0.1984988]
[1720029065058,2.01163401,60346.0,60345.0,0.1984988]
[1720029065292,1.68021201,60346.0,60345.0,0.1984988]
[1720029067024,1.68021201,60346.0,60345.0,0.25008446]
[1720029068811,1.68021201,60346.0,60345.0,0.1984988]
[1720029069188,1.68021201,60346.0,60345.0,0.25008446]
[1720029069782,1.75631201,60346.0,60345.0,0.25008446]
[1720029070751,1.75171201,60346.0,60345.0,0.25008446]
[1720029071335,1.26099001,60346.0,60345.0,0.25008446]
[1720029071547,0.16672401,60346.0,60345.0,0.76168446]
[1720029071744,0.00101301,60346.0,60345.0,1.13778446]
[1720029072769,0.00101301,60346.0,60345.0,1.29949746]
[1720029072977,0.00101301,60346.0,60345.0,1.28849746]
[1720029073306,0.00101301,60346.0,60345.0,1.30049746]
[1720029073603,0.00101301,60346.0,60345.0,1.96335146]
[1720029073832,0.00101301,60346.0,60345.0,1.87525146]
[1720029074227,0.00101301,60346.0,60345.0,1.88925146]
[1720029074437,0.00807695,60350.0,60346.0,1.41184866]
[1720029074662,0.00807695,60350.0,60346.0,2.11136946]
[1720029074861,0.00807695,60350.0,60346.0,2.16083928]
[1720029075252,0.00807695,60350.0,60346.0,2.11116946]
[1720029075376,0.00807695,60350.0,60346.0,2.49216138]
[1720029075591,0.00807695,60350.0,60349.0,1.92722766]
[1720029075781,0.00807695,60350.0,60349.0,2.63213146]
[1720029076239,0.00807695,60350.0,60349.0,1.77912146]
[1720029076414,0.17377695,60350.0,60349.0,0.94898446]
[1720029076657,0.50517695,60350.0,60349.0,0.94898446]
[1720029076810,0.00807695,60350.0,60349.0,0.94898446]
[1720029076989,0.00807695,60350.0,60349.0,0.96298446]
[1720029077197,0.08015582,60360.0,60358.0,0.05158566]
[1720029077513,0.49781528,60359.0,60358.0,0.23488446]
[1720029077721,0.59781528,60359.0,60358.0,0.23488446]
[1720029077930,0.59781528,60359.0,60358.0,0.36698446]
[1720029078125,0.26646528,60359.0,60358.0,0.45468446]
[1720029078360,0.10079028,60359.0,60358.0,0.75458446]
[1720029079093,0.26646528,60359.0,60358.0,0.73848446]
[1720029079302,0.26646528,60359.0,60358.0,0.76848446]
[1720029079509,0.59781528,60359.0,60358.0,0.76848446]
[1720029080267,0.59781528,60359.0,60358.0,0.78248446]
[1720029080468,0.92916528,60359.0,60358.0,0.66478446]
[1720029080893,0.92916528,60359.0,60358.0,0.69478446]
[1720029081300,0.93007829,60359.0,60358.0,0.69478446]
[1720029082619,0.63259153,60359.0,60358.0,0.69478446]
[1720029082814,0.79826653,60359.0,60358.0,0.69478446]
[1720029083445,0.46691653,60359.0,60358.0,0.69478446]
[1720029083998,0.00091301,60359.0,60358.0,0.78298446]
[1720029085025,0.00091301,60359.0,60358.0,1.57981846]
[1720029085217,0.00091301,60359.0,60358.0,1.77981846]
[1720029085431,0.00091301,60359.0,60358.0,1.76581846]
[1720029085625,0.00091301,60359.0,60358.0,1.77981846]
[1720029086422,0.00091301,60359.0,60358.0,1.76581846]
[1720029086694,0.00091301,60359.0,60358.0,2.08067446]
[1720029087561,0.00091301,60359.0,60358.0,2.09467446]
[1720029088265,0.00091301,60359.0,60358.0,1.82810446]
[1720029088476,0.00091301,60359.0,60358.0,0.96638446]
[1720029088893,0.82928801,60359.0,60358.0,0.71338446]
[1720029089115,0.49793801,60359.0,60358.0,0.69938446]
[1720029089328,0.16658801,60359.0,60358.0,0.92948446]
[1720029089546,0.16658801,60359.0,60358.0,0.94348446]
[1720029089934,0.16658801,60359.0,60358.0,0.92948446]
[1720029090228,0.16658801,60359.0,60358.0,0.96658446]
[1720029090434,0.00091301,60359.0,60358.0,0.95258446]
[1720029090763,0.00091301,60359.0,60358.0,0.96658446]
[1720029090918,0.00091301,60359.0,60358.0,0.95258446]
[1720029091518,0.00091301,60359.0,60358.0,0.96658446]
[1720029091694,0.00091301,60359.0,60358.0,2.11127446]
[1720029092743,0.00091301,60359.0,60358.0,2.09727446]
[1720029092943,0.00091301,60359.0,60358.0,2.11127446]
[1720029093154,0.00091301,60359.0,60358.0,2.44263046]
[1720029093356,0.00091301,60359.0,60358.0,2.11127446]
[1720029093982,0.00101301,60359.0,60358.0,2.11127446]
[1720029094154,0.00101301,60359.0,60358.0,2.14450446]
[1720029094476,0.00101301,60359.0,60358.0,2.97586046]
[1720029094680,0.00101301,60359.0,60358.0,2.96186046]
[1720029094832,0.00101301,60359.0,60358.0,2.63050446]
[1720029095249,0.00101301,60359.0,60358.0,2.97586046]
[1720029095462,0.00101301,60359.0,60358.0,2.94786046]
[1720029095845,0.00101301,60359.0,60358.0,2.97586046]
[1720029097399,0.00101301,60359.0,60358.0,2.69397433]
[1720029097627,0.00101301,60359.0,60358.0,2.64450446]
[1720029099724,0.00101301,60359.0,60358.0,2.71085546]
[1720029103472,0.00101301,60359.0,60358.0,2.84855936]
[1720029104130,0.00101301,60359.0,60358.0,1.98397336]
[1720029104297,0.00101301,60359.0,60358.0,1.87949946]
[1720029104501,0.00101301,60359.0,60358.0,2.21085546]
[1720029104697,0.00101301,60359.0,60358.0,2.39801834]
[1720029104909,0.00101301,60359.0,60358.0,2.67991628]
[1720029105336,0.00101301,60359.0,60358.0,2.77883241]
[1720029106463,0.00101301,60359.0,60358.0,2.67991628]
[1720029106787,0.00101301,60359.0,60358.0,2.77880704]
[1720029106992,0.00101301,60359.0,60358.0,2.54221146]
[1720029107193,0.00101301,60359.0,60358.0,2.67990732]
[1720029108267,0.00101301,60359.0,60358.0,2.80352077]
[1720029109394,0.0103017,60362.0,60361.0,2.76240166]
[1720029109628,0.0103017,60362.0,60361.0,3.06039632]
[1720029109934,0.0103017,60362.0,60361.0,3.06029632]
[1720029110375,0.0103017,60362.0,60361.0,3.15923741]
[1720029110949,0.0103017,60362.0,60361.0,3.17323741]
[1720029111311,0.0103017,60362.0,60361.0,3.07429567]
[1720029111511,0.0103017,60362.0,60361.0,3.09729567]
[1720029111759,0.0103017,60362.0,60361.0,3.19626195]
[1720029112349,0.0103017,60362.0,60361.0,3.22097285]
[1720029113442,0.0103017,60362.0,60361.0,3.11129567]
[1720029113800,0.0103017,60362.0,60361.0,3.11129504]
[1720029113981,0.0103017,60362.0,60361.0,3.11119504]
[1720029114181,0.0103017,60362.0,60361.0,3.11119531]
[1720029114745,0.01121471,60362.0,60361.0,3.11119531]
[1720029115488,0.01121471,60362.0,60361.0,3.2597447]
[1720029115953,0.01121471,60362.0,60361.0,3.11119531]
[1720029116533,0.01100343,60362.0,60361.0,3.11119531]
[1720029116867,0.01100343,60362.0,60361.0,3.11118961]
[1720029117076,0.01100343,60362.0,60361.0,3.25996104]
[1720029117316,0.01100343,60362.0,60361.0,3.11118961]
[1720029119769,0.01526376,60368.0,60367.0,0.88098566]
[1720029119947,0.01526376,60368.0,60367.0,2.71654461]
[1720029120165,0.01526376,60368.0,60367.0,2.57885546]
[1720029120539,0.01526376,60368.0,60367.0,2.86543506]
[1720029121244,0.01526376,60368.0,60367.0,2.87933506]
[1720029121561,0.01526376,60368.0,60367.0,2.74444161]
[1720029121769,0.01526376,60368.0,60367.0,2.89333506]
[1720029121969,0.01526376,60368.0,60367.0,2.91633506]
[1720029122244,0.01526376,60368.0,60367.0,2.90233506]
[1720029122475,0.01526376,60368.0,60367.0,2.75344161]
[1720029122665,0.01526376,60368.0,60367.0,2.76744161]
[1720029123223,0.01526376,60368.0,60367.0,1.94613561]
[1720029123462,0.01526376,60368.0,60367.0,2.16211561]
[1720029124426,0.01526376,60368.0,60367.0,1.75841561]
[1720029125542,0.01526376,60368.0,60367.0,1.42700961]
[1720029125792,0.01526376,60368.0,60367.0,1.72680961]
[1720029126065,0.01526376,60368.0,60367.0,1.92042946]
[1720029126299,0.01526376,60368.0,60367.0,2.05115027]
[1720029126537,0.01526376,60368.0,60367.0,2.24731567]
[1720029126804,0.01526376,60368.0,60367.0,2.37145349]
[1720029127483,0.01526376,60368.0,60367.0,2.2089501]
[1720029128227,0.01526376,60368.0,60367.0,2.20896656]
[1720029129346,0.01526376,60368.0,60367.0,2.10962707]
[1720029129830,0.01536376,60368.0,60367.0,2.10962707]
[1720029131223,0.01536376,60368.0,60367.0,2.23382467]
[1720029131822,0.01536376,60368.0,60367.0,2.30982467]
[1720029132620,0.01536376,60368.0,60367.0,2.34305467]
[1720029133272,0.01536376,60368.0,60367.0,2.4047437]
[1720029133428,0.01536376,60368.0,60367.0,2.4667437]
[1720029133669,0.01536376,60368.0,60367.0,2.4527437]
[1720029133912,0.01536376,60368.0,60367.0,2.4807437]
[1720029134347,0.01536376,60368.0,60367.0,2.4527437]
[1720029134546,0.01536376,60368.0,60367.0,2.45278548]
[1720029134747,0.01536376,60368.0,60367.0,2.46678548]
[1720029134960,0.01536376,60368.0,60367.0,2.79809148]
[1720029135549,0.01536376,60368.0,60367.0,2.87555197]
[1720029135720,0.01536376,60368.0,60367.0,3.20685797]
[1720029135936,0.01536376,60368.0,60367.0,3.55103771]
[1720029136138,0.01536376,60368.0,60367.0,3.9653123]
[1720029136375,0.01536376,60368.0,60367.0,4.17948873]
[1720029136984,0.01536376,60368.0,60367.0,4.16548873]
[1720029138118,0.01536376,60368.0,60367.0,4.17948873]
[1720029138330,0.01536376,60368.0,60367.0,3.89634371]
[1720029138529,0.01536376,60368.0,60367.0,3.88234371]
[1720029138984,0.01536376,60368.0,60367.0,3.89634371]
[1720029139186,0.00166111,60371.0,60370.0,2.40482066]
[1720029139422,0.00166111,60371.0,60370.0,2.98747924]
[1720029139817,0.00166111,60371.0,60370.0,3.10147924]
[1720029140523,0.00166111,60371.0,60370.0,3.06045755]
[1720029140752,0.00166111,60371.0,60370.0,3.11547924]
[1720029140961,0.00166111,60371.0,60370.0,3.12947924]
[1720029141103,0.00166111,60371.0,60370.0,3.27845698]
[1720029141303,0.00166111,60371.0,60370.0,3.30145698]
[1720029142342,0.00166111,60371.0,60370.0,3.15248009]
[1720029142798,0.00166111,60371.0,60370.0,3.49661889]
[1720029142954,0.00166111,60371.0,60370.0,3.496619]
[1720029143150,0.00725099,60385.0,60370.0,3.496619]
[1720029143151,0.009185,60392.0,60386.0,0.88068566]
[1720029143360,0.17477,60392.0,60387.0,0.54658366]
[1720029143575,0.17477,60392.0,60387.0,0.70688246]
[1720029143748,0.17477,60392.0,60387.0,0.72988246]
[1720029144070,0.033485,60392.0,60391.0,0.38098566]
[1720029144226,0.033485,60392.0,60391.0,0.56428446]
[1720029144451,0.125685,60392.0,60391.0,0.56428446]
[1720029145177,0.125685,60392.0,60391.0,0.57628446]
[1720029146554,0.125685,60392.0,60391.0,0.59028446]
[1720029147965,0.340316,60400.0,60395.0,0.027794]
[1720029148149,0.274969,60396.0,60395.0,0.23448446]
[1720029148350,0.605916,60396.0,60395.0,0.23448446]
[1720029148606,0.937063,60396.0,60395.0,0.23448446]
[1720029149227,0.937263,60396.0,60395.0,0.1832988]
[1720029149522,1.26841,60396.0,60395.0,0.1832988]
[1720029149719,1.26841,60396.0,60395.0,0.1972988]
[1720029150416,1.599557,60396.0,60395.0,0.1742988]
[1720029151163,1.610957,60396.0,60395.0,0.1742988]
[1720029151769,1.610957,60396.0,60395.0,0.1741988]